bitfinex/quotes_SOLUSD_20250222
["timestamp","ask_amount","ask_price","bid_price","bid_amount"]
[1740239745597,0.03,173.91,173.9,19.13300722]
[1740239748586,0.03,173.91,173.9,118.52765608]
[1740239748801,0.03,173.91,173.9,127.30827104]
[1740239749313,0.03,173.91,173.9,133.05867104]
[1740239749615,0.03,173.91,173.9,134.05867104]
[1740239751211,0.03,173.92,173.91,1.5]
[1740239751412,0.03,173.92,173.91,22.21566703]
[1740239752001,0.03,173.92,173.91,20.71566703]
[1740239752204,0.03,173.92,173.91,11.42630722]
[1740239752419,0.5,173.96,173.91,11.42630722]
[1740239752608,0.03,173.97,173.96,1.5205]
[1740239752790,0.03,173.97,173.96,9.57876824]
[1740239752995,0.03,173.97,173.96,10.07876824]
[1740239753204,0.03,173.97,173.96,67.21030434]
[1740239753525,0.03,173.98,173.97,28.2079171]
[1740239753692,0.03,174.0,173.99,21.0]
[1740239753894,0.03,174.04,174.03,20.0]
[1740239754126,0.03,174.04,174.03,34.17587935]
[1740239754326,0.03,174.08,174.03,65.11335086]
[1740239754517,0.03,174.08,174.07,11.42630722]
[1740239754923,0.03,174.09,174.07,11.42630722]
[1740239754924,0.03,174.09,174.08,19.60040722]
[1740239755106,0.03,174.1,174.08,28.03054768]
[1740239755317,0.03,174.1,174.09,20.71778144]
[1740239755803,0.03,174.1,174.09,12.28764098]
[1740239756696,0.03,174.15,174.13,20.0]
[1740239757019,0.03,174.15,174.14,0.86115077]
[1740239757211,0.03,174.15,174.14,9.56898568]
[1740239757409,0.03,174.15,174.14,20.9952929]
[1740239757718,0.03,174.15,174.14,20.13414213]
[1740239758022,0.03,174.15,174.14,11.42630722]
[1740239758605,0.03,174.15,174.14,37.82858674]
[1740239760228,0.03,174.18,174.14,17.82858674]
[1740239760428,0.03,174.18,174.17,17.82858674]
[1740239762600,0.03,174.18,174.17,100.95503827]
[1740239762803,0.03,174.18,174.17,100.09408674]
[1740239763811,17.82858674,174.26,174.17,98.57358674]
[1740239764114,81.2,174.26,174.2,17.82858674]
[1740239764318,104.76728674,174.26,174.2,17.82858674]
[1740239764822,17.82858674,174.24,174.17,98.57358674]
[1740239765029,81.2,174.23,174.17,17.82858674]
[1740239765204,18.64964886,174.21,174.15,35.608632]
[1740239765525,36.4782356,174.21,174.15,17.78004526]
[1740239765731,36.4782356,174.21,174.15,35.608632]
[1740239766030,18.64964886,174.21,174.15,17.82858674]
[1740239766322,5.7405,174.2,174.14,17.82858674]
[1740239766508,36.4782356,174.21,174.14,17.82858674]
[1740239766509,17.82858674,174.21,174.14,17.82858674]
[1740239766711,17.82858674,174.22,174.15,17.82858674]
[1740239767026,119.2070356,174.23,174.16,17.82858674]
[1740239767331,17.82858674,174.21,174.15,17.82858674]
[1740239767522,17.82858674,174.22,174.15,17.82858674]
[1740239767727,5.7402,174.21,174.15,17.82858674]
[1740239768425,42.2184356,174.21,174.11,6.5057]
[1740239768627,17.82858674,174.19,174.12,17.82858674]
[1740239769435,17.82858674,174.18,174.11,17.82858674]
[1740239769728,5.7415,174.17,174.11,17.82858674]
[1740239769949,99.02858674,174.16,174.1,35.56009053]
[1740239770139,17.82858674,174.14,174.1,35.56009053]
[1740239770324,81.2,174.16,174.1,35.56009053]
[1740239770325,17.82858674,174.15,174.1,35.56009053]
[1740239770524,99.02858674,174.16,174.1,35.56009053]
[1740239770731,81.2,174.16,174.11,17.82858674]
[1740239770909,17.82858674,174.15,174.08,17.82858674]
[1740239771110,17.82858674,174.14,174.07,24.33428674]
[1740239771632,23.57138674,174.13,174.06,17.82858674]
[1740239772135,106.35438674,174.15,174.08,17.82858674]
[1740239773936,100.61198674,174.15,174.08,17.82858674]
[1740239774248,82.7834,174.15,174.09,17.82858674]
[1740239774450,82.7834,174.15,174.1,17.82858674]
[1740239774742,82.7834,174.15,174.09,17.82858674]
[1740239774962,81.2,174.15,174.1,17.82858674]
[1740239775742,86.9422,174.15,174.1,17.82858674]
[1740239776037,35.00624607,174.15,174.09,17.82858674]
[1740239777519,35.00624607,174.15,174.07,5.8077]
[1740239777718,35.00624607,174.15,174.09,17.82858674]
[1740239777920,35.00624607,174.15,174.1,17.82858674]
[1740239778128,29.26404607,174.15,174.1,17.82858674]
[1740239778626,29.26404607,174.15,174.14,17.82858674]
[1740239778836,29.26404607,174.15,174.13,17.82858674]
[1740239779956,29.26404607,174.15,174.12,17.82858674]
[1740239780331,29.26404607,174.15,174.11,17.82858674]
[1740239780643,29.26404607,174.15,174.13,11.41163801]
[1740239780842,29.26404607,174.15,174.12,11.41163801]
[1740239781259,29.26404607,174.15,174.11,11.41163801]
[1740239782132,29.26404607,174.15,174.14,17.15413801]
[1740239782344,29.26404607,174.15,174.14,106.86957292]
[1740239782863,29.26404607,174.15,174.14,115.10758377]
[1740239783159,29.26404607,174.15,174.14,150.75091601]
[1740239783326,29.26404607,174.15,174.14,151.75091601]
[1740239784258,29.26404607,174.15,174.14,150.75091601]
[1740239784457,4.607e-05,174.15,174.14,152.45091601]
[1740239785049,4.607e-05,174.15,174.14,151.45091601]
[1740239785554,4.607e-05,174.15,174.14,152.45091601]
[1740239785745,4.607e-05,174.15,174.14,151.45091601]
[1740239786126,4.607e-05,174.15,174.14,142.4804811]
[1740239786348,0.03004607,174.15,174.14,142.4804811]
[1740239787645,0.03004607,174.15,174.14,105.00916612]
[1740239789151,0.03004607,174.15,174.14,142.4804811]
[1740239789348,4.607e-05,174.15,174.14,142.4804811]
[1740239790231,0.03,174.17,174.16,45.39144886]
[1740239790544,0.03,174.17,174.16,63.21311498]
[1740239790857,19.40506612,174.28,174.2,20.0]
[1740239790858,1.5834,174.28,174.2,20.0]
[1740239791065,1.5834,174.28,174.24,17.82166612]
[1740239791353,1.5834,174.28,174.23,17.82166612]
[1740239792353,1.5834,174.28,174.22,17.82166612]
[1740239792535,1.5834,174.28,174.24,17.82166612]
[1740239794055,1.5834,174.28,174.25,17.82166612]
[1740239794359,82.8577,174.31,174.26,17.82166612]
[1740239794652,7.3946,174.31,174.27,17.82166612]
[1740239795361,1.6577,174.31,174.27,17.82166612]
[1740239796438,0.03,174.33,174.3,17.82166612]
[1740239796760,0.03,174.33,174.32,17.82166612]
[1740239796950,0.03,174.33,174.31,17.82166612]
[1740239798645,0.03,174.33,174.32,17.82166612]
[1740239801044,0.03,174.33,174.31,37.82166612]
[1740239801360,0.03,174.33,174.32,17.82166612]
[1740239801747,0.03,174.33,174.32,19.25797021]
[1740239802964,0.03,174.33,174.32,17.82166612]
[1740239805458,0.03,174.33,174.3,17.82166612]
[1740239805657,17.85166612,174.33,174.28,81.445]
[1740239806051,17.85166612,174.33,174.26,116.34671138]
[1740239806248,17.82166612,174.32,174.26,98.52504526]
[1740239806455,17.82166612,174.31,174.26,98.52504526]
[1740239807168,0.03,174.33,174.29,17.82166612]
[1740239807546,0.03,174.33,174.26,86.4835]
[1740239807547,0.03,174.33,174.28,17.82166612]
[1740239809156,0.03,174.33,174.3,17.82166612]
[1740239809344,0.03,174.33,174.27,80.745]
[1740239809669,0.03,174.33,174.28,17.82166612]
[1740239810164,0.03,174.33,174.27,98.56666612]
[1740239810370,17.85166612,174.33,174.27,80.745]
[1740239810556,0.03,174.33,174.28,17.82166612]
[1740239810969,0.03,174.33,174.27,98.56666612]
[1740239812065,0.03,174.33,174.27,104.30476612]
[1740239812266,0.03,174.33,174.29,17.82166612]
[1740239813668,0.03,174.33,174.31,17.82166612]
[1740239813962,0.03,174.33,174.32,17.82166612]
[1740239815267,0.03,174.33,174.32,23.55816612]
[1740239817581,0.03,174.33,174.32,17.82166612]
[1740239817781,0.03,174.33,174.32,23.55816612]
[1740239817981,0.03,174.33,174.32,104.30316612]
[1740239820591,0.03,174.33,174.32,98.56666612]
[1740239820787,0.03,174.33,174.32,104.30316612]
[1740239821993,0.03,174.33,174.32,105.16335555]
[1740239822169,0.03,174.33,174.32,113.23657379]
[1740239823497,0.03,174.33,174.32,114.67263318]
[1740239824594,0.03,174.33,174.32,152.84394816]
[1740239824779,0.03,174.33,174.32,157.93081791]
[1740239827175,1.5729,174.43,174.36,21.0]
[1740239827394,1.5729,174.43,174.42,17.82166612]
[1740239827695,13.8063,174.48,174.42,17.82166612]
[1740239827908,13.8063,174.48,174.43,17.82166612]
[1740239828086,8.0749,174.48,174.43,17.82166612]
[1740239828612,8.0749,174.48,174.44,11.37248727]
[1740239829106,8.0749,174.48,174.45,11.37248727]
[1740239829275,1.6513,174.48,174.46,11.37248727]
[1740239830036,1.6513,174.48,174.45,11.37248727]
[1740239830173,1.6513,174.48,174.46,11.37248727]
[1740239830610,1.6513,174.48,174.46,17.76425038]
[1740239830895,1.6513,174.48,174.45,17.76425038]
[1740239831920,1.6513,174.48,174.46,17.76425038]
[1740239832126,1.6513,174.48,174.45,17.76425038]
[1740239833706,1.6813,174.48,174.45,17.76425038]
[1740239836308,0.03,174.48,174.46,17.76425038]
[1740239836614,0.03,174.48,174.47,17.76425038]
[1740239837325,0.03,174.48,174.46,17.76425038]
[1740239837709,0.03,174.48,174.47,17.76425038]
[1740239838197,0.03,174.48,174.46,17.76425038]
[1740239838925,0.03,174.48,174.47,17.76425038]
[1740239840324,0.03,174.48,174.47,23.49585038]
[1740239840517,0.03,174.48,174.47,42.14549924]
[1740239840721,0.03,174.48,174.47,51.30552859]
[1740239841727,0.03,174.48,174.47,52.74029335]
[1740239842214,0.03,174.51,174.5,20.0]
[1740239842418,0.03,174.51,174.5,75.17814962]
[1740239842735,0.03,174.51,174.5,83.51144008]
[1740239843842,0.03,174.51,174.5,65.7471897]
[1740239844223,0.03,174.51,174.5,89.24204008]
[1740239847022,1.5951,174.61,174.54,20.0]
[1740239847222,1.5951,174.61,174.6,17.76425038]
[1740239847420,8.1303,174.66,174.6,17.76425038]
[1740239847619,8.1303,174.66,174.55,10.31221917]
[1740239847620,8.1303,174.66,174.62,17.76425038]
[1740239848458,8.1303,174.66,174.65,17.76425038]
[1740239848459,0.03,174.66,174.65,17.76425038]
[1740239853136,0.03,174.66,174.65,19.19782158]
[1740239854826,0.03,174.66,174.65,41.99969059]
[1740239855025,0.03,174.66,174.65,50.72955327]
[1740239855456,0.03,174.69,174.68,20.0]
[1740239855947,0.03,174.69,174.68,17.76425038]
[1740239856340,0.03,174.69,174.68,21.4915355]
[1740239856644,0.03,174.69,174.68,41.99952389]
[1740239856844,0.03,174.69,174.68,59.76377427]
[1740239857024,17.76425038,174.82,174.75,17.76425038]
[1740239857220,19.42405038,174.83,174.76,17.76425038]
[1740239857445,1.6598,174.83,174.78,17.76425038]
[1740239858158,25.14395038,174.83,174.76,17.76425038]
[1740239858445,25.14395038,174.83,174.79,1.4335712]
[1740239859232,17.76425038,174.8,174.79,1.4335712]
[1740239859630,23.48505038,174.8,174.79,1.4335712]
[1740239859963,5.7208,174.8,174.75,17.76425038]
[1740239860130,5.7208,174.8,174.71,5.7237]
[1740239860332,17.76425038,174.79,174.72,17.76425038]
[1740239860529,23.48505038,174.8,174.7,1.0]
[1740239860937,23.48445038,174.82,174.78,2.09578463]
[1740239861467,17.76425038,174.8,174.78,2.09578463]
[1740239861630,17.76425038,174.79,174.71,8.16743776]
[1740239861968,17.76425038,174.78,174.71,17.76425038]
[1740239862438,17.76425038,174.73,174.69,4.30071361]
[1740239863453,19.42405038,174.75,174.69,4.30071361]
[1740239863657,19.42405038,174.75,174.69,22.06496399]
[1740239864134,25.14655038,174.75,174.7,1.43325956]
[1740239864859,17.76425038,174.74,174.7,1.43325956]
[1740239865366,17.76425038,174.74,174.67,17.76425038]
[1740239865865,17.76425038,174.73,174.68,20.0]
[1740239868244,17.76425038,174.71,174.64,17.76425038]
[1740239868438,17.76425038,174.67,174.6,23.49145038]
[1740239868867,17.76425038,174.67,174.6,17.76425038]
[1740239869077,19.42045038,174.67,174.6,17.76425038]
[1740239869283,17.76425038,174.66,174.59,17.76425038]
[1740239869480,17.76425038,174.65,174.59,17.76425038]
[1740239869959,1.6562,174.67,174.58,96.28]
[1740239869960,17.76425038,174.64,174.58,96.28]
[1740239870160,17.76425038,174.64,174.6,0.063]
[1740239870488,17.76425038,174.62,174.6,0.063]
[1740239871065,5.726,174.64,174.6,0.063]
[1740239871066,17.76425038,174.63,174.6,0.063]
[1740239871266,23.49025038,174.64,174.6,0.063]
[1740239871471,17.76425038,174.63,174.6,0.063]
[1740239871663,17.76425038,174.64,174.6,0.063]
[1740239872043,17.76425038,174.66,174.6,17.82725038]
[1740239872246,19.42045038,174.67,174.6,17.82725038]
[1740239872483,17.76425038,174.66,174.6,0.063]
[1740239874080,23.48965038,174.66,174.6,0.063]
[1740239874579,17.76425038,174.66,174.6,0.063]
[1740239874885,17.76425038,174.65,174.6,0.063]
[1740239876064,23.48965038,174.66,174.6,0.063]
[1740239877195,1.6562,174.67,174.6,17.82725038]
[1740239877374,1.6562,174.67,174.63,17.76425038]
[1740239877686,25.13105038,174.72,174.65,17.76425038]
[1740239877988,7.3668,174.72,174.66,17.76425038]
[1740239878567,1.6434,174.72,174.66,17.76425038]
[1740239878967,1.6434,174.72,174.67,17.76425038]
[1740239879794,98.96425038,174.74,174.62,0.85861839]
[1740239879795,98.96425038,174.76,174.69,17.76425038]
[1740239880111,81.2,174.76,174.7,17.76425038]
[1740239880305,86.9221,174.76,174.7,17.76425038]
[1740239880964,104.68635038,174.76,174.69,17.76425038]
[1740239881170,17.76425038,174.75,174.69,17.76425038]
[1740239881471,17.76425038,174.73,174.66,17.76425038]
[1740239881673,23.48695038,174.74,174.68,17.76425038]
[1740239882278,23.48695038,174.74,174.7,0.063]
[1740239882574,17.76425038,174.72,174.7,0.063]
[1740239882775,17.76425038,174.73,174.7,0.063]
[1740239883993,17.76425038,174.72,174.7,0.063]
[1740239884496,17.76425038,174.73,174.7,0.063]
[1740239885184,17.76425038,174.72,174.7,0.063]
[1740239885695,17.76425038,174.71,174.7,0.063]
[1740239886265,37.79735038,174.71,174.6,7.01005918]
[1740239886483,17.76425038,174.67,174.6,18.82725038]
[1740239886691,17.76425038,174.68,174.61,17.76425038]
[1740239886888,17.76425038,174.64,174.6,0.063]
[1740239887078,17.76425038,174.63,174.6,0.063]
[1740239887682,17.76425038,174.62,174.6,0.063]
[1740239888195,17.76425038,174.61,174.6,0.063]
[1740239889866,19.36635038,174.61,174.6,0.063]
[1740239891174,37.13060076,174.61,174.6,0.063]
[1740239891374,27.0881,174.6,174.52,0.063]
[1740239891580,17.76425038,174.54,174.52,0.063]
[1740239892379,23.49295038,174.56,174.52,0.063]
[1740239892780,17.76425038,174.55,174.52,0.063]
[1740239892984,23.49295038,174.56,174.52,0.063]
[1740239893181,17.76425038,174.57,174.52,0.063]
[1740239893600,17.76425038,174.56,174.52,0.063]
[1740239893800,17.76425038,174.55,174.52,0.063]
[1740239893983,17.76425038,174.53,174.52,0.063]
[1740239894781,23.49355038,174.54,174.52,0.063]
[1740239894979,17.76425038,174.53,174.52,0.063]
[1740239896100,17.76425038,174.56,174.52,0.063]
[1740239896600,17.76425038,174.55,174.52,0.063]
[1740239896809,17.76425038,174.54,174.52,0.063]
[1740239897592,23.49355038,174.54,174.52,0.063]
[1740239897986,17.76425038,174.54,174.52,0.063]
[1740239898305,17.76425038,174.56,174.52,0.063]
[1740239899002,23.49225038,174.58,174.52,0.063]
[1740239899180,98.96425038,174.57,174.52,0.063]
[1740239899881,81.2,174.57,174.52,0.063]
[1740239900603,98.96425038,174.57,174.52,0.063]
[1740239901110,81.2,174.57,174.52,0.063]
[1740239901610,86.9283,174.57,174.52,0.063]
[1740239901812,104.69255038,174.57,174.52,0.063]
[1740239903182,81.2,174.57,174.52,0.063]
[1740239903699,81.2,174.57,174.52,17.82725038]
[1740239904905,100.56635038,174.61,174.54,17.76425038]
[1740239905138,82.8021,174.61,174.56,17.76425038]
[1740239905608,82.8021,174.61,174.55,23.49305038]
[1740239906110,88.5292,174.61,174.55,17.76425038]
[1740239906422,88.5292,174.61,174.54,17.76425038]
[1740239906423,106.29345038,174.61,174.54,17.76425038]
[1740239906628,17.76425038,174.6,174.53,17.76425038]
[1740239906825,106.29345038,174.61,174.54,17.76425038]
[1740239907128,0.03,174.6,174.54,17.76425038]
[1740239907910,0.03,174.6,174.55,17.76425038]
[1740239908527,0.03,174.6,174.56,17.76425038]
[1740239909229,0.03,174.6,174.59,17.76425038]
[1740239909540,0.03,174.6,174.58,17.76425038]
[1740239909715,0.03,174.6,174.57,5.7283]
[1740239909716,0.03,174.6,174.59,17.76425038]
[1740239910504,0.03,174.6,174.59,98.50925038]
[1740239911212,0.03,174.6,174.59,80.745]
[1740239911617,0.03,174.6,174.59,98.50925038]
[1740239912230,0.03,174.6,174.59,104.23695038]
[1740239913207,0.03,174.6,174.59,122.00120076]
[1740239913416,81.2,174.69,174.59,141.65084962]
[1740239913616,1.6396,174.7,174.65,17.76425038]
[1740239913818,17.76425038,174.69,174.62,118.50925038]
[1740239914030,17.76425038,174.68,174.62,80.745]
[1740239914419,17.76425038,174.69,174.63,17.76425038]
[1740239914727,17.76425038,174.67,174.62,80.745]
[1740239914911,17.76425038,174.66,174.62,80.745]
[1740239915112,17.76425038,174.66,174.6,17.76425038]
[1740239915314,81.2,174.69,174.59,87.0587]
[1740239915315,17.76425038,174.68,174.61,17.76425038]
[1740239915529,23.48895038,174.68,174.61,17.76425038]
[1740239915710,17.76425038,174.67,174.61,17.76425038]
[1740239915911,98.96425038,174.69,174.62,17.76425038]
[1740239916130,81.2,174.69,174.64,17.76425038]
[1740239916330,104.68765038,174.73,174.66,17.76425038]
[1740239916942,98.96425038,174.73,174.66,17.76425038]
[1740239917322,81.2,174.73,174.67,17.76425038]
[1740239918826,86.9231,174.73,174.67,17.76425038]
[1740239919436,17.76425038,174.72,174.65,17.76425038]
[1740239919625,17.76425038,174.71,174.64,98.50925038]
[1740239919940,17.76425038,174.7,174.64,80.745]
[1740239920123,17.76425038,174.68,174.64,80.745]
[1740239920323,17.76425038,174.66,174.59,24.07795038]
[1740239920529,17.76425038,174.66,174.59,104.82295038]
[1740239921239,17.76425038,174.66,174.62,20.0]
[1740239922035,17.76425038,174.66,174.6,17.76425038]
[1740239923537,23.48975038,174.66,174.59,110.61355038]
[1740239923738,17.76425038,174.61,174.59,0.063]
[1740239923942,17.76425038,174.6,174.59,0.063]
[1740239925348,17.76425038,174.61,174.59,0.063]
[1740239925755,23.49135038,174.61,174.59,0.063]
[1740239926124,17.76425038,174.6,174.59,0.063]
[1740239927547,23.49155038,174.6,174.59,0.063]
[1740239928458,5.7273,174.6,174.59,0.063]
[1740239928647,17.76425038,174.6,174.59,0.063]
[1740239929157,35.52850076,174.6,174.59,0.063]
[1740239929967,55.70044962,174.6,174.59,0.0001]
[1740239930154,56.70044962,174.6,174.59,0.0001]
[1740239931159,62.42774962,174.6,174.52,0.063]
[1740239931366,17.76425038,174.53,174.52,0.063]
[1740239933470,17.76425038,174.54,174.52,0.063]
[1740239933652,17.76425038,174.56,174.52,0.063]
[1740239933842,17.76425038,174.54,174.52,0.063]
[1740239934658,23.49355038,174.54,174.52,0.063]
[1740239936959,17.76425038,174.53,174.52,0.063]
[1740239938265,5.7293,174.54,174.52,0.063]
[1740239938266,23.49355038,174.54,174.52,0.063]
[1740239940068,98.96425038,174.55,174.52,0.063]
[1740239940274,81.2,174.55,174.52,0.063]
[1740239940460,5.7293,174.54,174.52,0.063]
[1740239940773,17.76425038,174.54,174.52,0.063]
[1740239942762,98.96425038,174.58,174.52,0.063]
[1740239943276,17.76425038,174.57,174.52,0.063]
[1740239944470,98.96425038,174.58,174.52,0.063]
[1740239945367,98.96425038,174.58,174.52,17.82725038]
[1740239945667,81.2,174.58,174.53,17.76425038]
[1740239947168,81.2,174.58,174.52,23.55715038]
[1740239947474,81.2,174.58,174.54,17.76425038]
[1740239948044,0.03,174.6,174.56,17.76425038]
[1740239948274,0.03,174.6,174.55,17.76425038]
[1740239949372,0.03,174.6,174.56,17.76425038]
[1740239949575,0.03,174.6,174.56,23.49275038]
[1740239949945,0.03,174.6,174.57,17.76425038]
[1740239950152,0.03,174.6,174.58,17.76425038]
[1740239950351,0.03,174.6,174.57,17.76425038]
[1740239950652,0.03,174.6,174.59,17.76425038]
[1740239950854,0.03,174.6,174.58,17.76425038]
[1740239951151,0.03,174.6,174.56,104.23775038]
[1740239951579,0.03,174.6,174.56,98.50925038]
[1740239951898,0.03,174.6,174.56,104.23785038]
[1740239953168,0.03,174.6,174.56,98.50925038]
[1740239953354,17.79425038,174.6,174.56,80.745]
[1740239953680,17.76425038,174.59,174.56,80.745]
[1740239954183,17.79425038,174.6,174.56,80.745]
[1740239954567,17.79425038,174.6,174.54,5.7293]
[1740239954881,17.79425038,174.6,174.56,20.0]
[1740239955070,17.76425038,174.59,174.53,98.50925038]
[1740239955279,17.76425038,174.59,174.53,80.745]
[1740239955651,17.76425038,174.58,174.53,80.745]
[1740239956262,17.76425038,174.57,174.52,0.063]
[1740239957685,23.49265038,174.57,174.52,0.063]
[1740239958382,17.76425038,174.56,174.52,0.063]
[1740239959187,23.49245038,174.58,174.52,0.063]
[1740239959894,17.76425038,174.55,174.52,0.063]
[1740239960595,17.76425038,174.53,174.52,0.063]
[1740239962997,23.49385038,174.53,174.52,0.063]
[1740239963664,48.08349924,174.53,174.52,0.063]
[1740239964373,129.28349924,174.53,174.52,0.063]
[1740239966104,100.84964886,174.52,174.51,0.0001]
[1740239966408,18.64964886,174.49,174.42,0.063]
[1740239966596,17.76425038,174.45,174.42,0.063]
[1740239967378,17.76425038,174.46,174.42,0.063]
[1740239967805,17.76425038,174.45,174.42,0.063]
[1740239968005,17.76425038,174.44,174.42,0.063]
[1740239968883,17.76425038,174.43,174.42,0.063]
[1740239969605,23.49715038,174.43,174.42,0.063]
[1740239970622,17.76425038,174.43,174.42,0.063]
[1740239971909,88.5816,174.45,174.42,0.063]
[1740239972114,17.76425038,174.43,174.42,0.063]
[1740239972983,17.76425038,174.44,174.42,0.063]
[1740239973511,17.76425038,174.43,174.42,0.063]
[1740239974113,17.76425038,174.44,174.42,0.063]
[1740239974313,17.76425038,174.47,174.42,0.063]
[1740239974484,23.62425038,174.48,174.42,0.063]
[1740239974692,5.86,174.48,174.42,17.82725038]
[1740239974890,23.62425038,174.48,174.42,17.82725038]
[1740239975525,23.62425038,174.48,174.42,0.063]
[1740239976320,81.2,174.49,174.43,17.76425038]
[1740239976826,17.76425038,174.49,174.42,98.57225038]
[1740239976992,17.76425038,174.5,174.43,17.76425038]
[1740239978114,17.76425038,174.51,174.44,17.76425038]
[1740239978702,17.76425038,174.5,174.44,17.76425038]
[1740239979717,17.76425038,174.5,174.44,23.49675038]
[1740239982328,17.76425038,174.5,174.43,23.49715038]
[1740239982823,17.76425038,174.5,174.44,17.76425038]
[1740239983196,0.03,174.51,174.45,17.76425038]
[1740239984326,17.76425038,174.5,174.44,23.49665038]
[1740239984802,17.79425038,174.51,174.44,23.49665038]
[1740239985998,17.76425038,174.5,174.44,23.49665038]
[1740239987426,17.76425038,174.5,174.44,104.24165038]
[1740239987815,17.79425038,174.51,174.44,104.24165038]
[1740239989126,17.79425038,174.51,174.45,17.76425038]
[1740239989828,17.79425038,174.51,174.44,104.24165038]
[1740239990012,17.76425038,174.5,174.44,98.50925038]
[1740239990219,17.76425038,174.49,174.44,80.745]
[1740239990524,17.76425038,174.49,174.44,86.4776]
[1740239990719,11.37253521,174.49,174.44,86.4776]
[1740239992125,11.37253521,174.49,174.44,80.745]
[1740239992435,17.10313521,174.5,174.44,80.745]
[1740239993628,17.13283521,174.51,174.45,11.37253521]
[1740239993930,17.13293521,174.51,174.45,11.37253521]
[1740239994106,17.13293521,174.51,174.44,97.91303521]
[1740239994307,11.37253521,174.5,174.44,80.808]
[1740239994827,17.13293521,174.51,174.44,97.91313521]
[1740239995325,11.37253521,174.5,174.44,86.5406]
[1740239995823,17.10313521,174.5,174.44,86.5406]
[1740239996024,0.03,174.51,174.45,11.37253521]
[1740239996331,5.7603,174.51,174.45,11.37253521]
[1740239997219,0.03,174.51,174.45,11.37253521]
[1740239998032,0.03,174.51,174.45,23.21273521]
[1740239998217,0.03,174.51,174.46,11.37253521]
[1740240000144,0.03,174.51,174.45,23.21273521]
[1740240000363,0.03,174.51,174.45,6.1081]
[1740240001166,11.40253521,174.51,174.45,6.1081]
[1740240001524,11.40253521,174.51,174.45,11.8403]
[1740240003138,0.03,174.51,174.45,23.21283521]
[1740240005042,0.03,174.51,174.48,11.37253521]
[1740240005221,0.03,174.51,174.49,11.37253521]
[1740240005418,81.2,174.55,174.52,20.0]
[1740240005739,81.2,174.58,174.52,26.0211]
[1740240005927,81.2,174.58,174.55,11.37253521]
[1740240006124,81.2,174.58,174.54,11.37253521]
[1740240006334,81.2,174.58,174.53,11.37253521]
[1740240006724,11.37253521,174.57,174.52,6.0211]
[1740240006929,0.03,174.51,174.5,20.0]
[1740240007128,0.03,174.51,174.5,31.37253521]
[1740240007726,0.03,174.51,174.5,37.10313521]
[1740240007923,0.03,174.51,174.5,20.0]
[1740240008434,0.03,174.51,174.5,11.37253521]
[1740240008823,0.03,174.51,174.5,20.0]
[1740240009050,0.03,174.51,174.5,31.37253521]
[1740240009553,0.03,174.51,174.5,37.10313521]
[1740240011050,0.03,174.51,174.5,112.11753521]
[1740240011353,0.03,174.51,174.5,100.745]
[1740240011552,0.03,174.51,174.5,80.745]
[1740240011849,11.40253521,174.51,174.45,0.063]
[1740240012344,0.03,174.51,174.47,11.37253521]
[1740240012557,0.03,174.51,174.5,31.37253521]
[1740240012718,0.03,174.51,174.5,92.11753521]
[1740240013355,0.03,174.51,174.5,97.84813521]
[1740240015037,0.03,174.51,174.5,92.11753521]
[1740240015271,0.03,174.51,174.5,97.84813521]
[1740240016026,0.03,174.51,174.5,168.76432491]
[1740240016653,0.0001,174.51,174.5,168.76432491]
[1740240016954,0.03,174.59,174.53,20.0]
[1740240017143,0.03,174.59,174.56,11.37253521]
[1740240017457,0.03,174.59,174.54,11.37253521]
[1740240018156,0.03,174.59,174.56,20.0]
[1740240019562,0.03,174.59,174.56,11.37253521]
[1740240019757,0.03,174.59,174.56,20.0]
[1740240020261,0.03,174.59,174.57,11.37253521]
[1740240020455,0.03,174.59,174.56,112.11753521]
[1740240021446,0.03,174.59,174.58,11.37253521]
[1740240021658,0.03,174.59,174.57,11.37253521]
[1740240023034,0.03,174.59,174.57,17.10083521]